{"text_format":"1","workbook":"xlsx","n_sheets":1,"sheets":["Anexo 24 (Psicólogo)"],"not_rendered":{"charts":0,"images":0,"macros":0,"external_links":0,"defined_names":0,"comments":0,"pivot_tables":0},"unopened":[],"bounds":{"document_bytes":16777216,"sheet_cells":100000,"rows_first":2000,"rows_last":500,"rows_between":2000,"halvings":0,"cell_chars":16384,"cell_head_chars":4096},"cells_cut":0,"cells_raw":0,"read":"whole","date_system":"1900"}

{"sheet":"Anexo 24 (Psicólogo)","index":0,"n_rows":24,"n_cols":21,"rows_kept":24,"cut":false,"hidden":false,"merged":[[0,0,0,20],[1,0,1,4],[1,5,1,9],[1,10,1,18],[2,0,2,4],[2,5,2,9],[3,0,3,4],[3,5,3,9],[3,19,3,20],[4,0,4,2],[4,3,4,20],[5,0,5,2],[6,0,6,2],[7,0,7,1],[8,0,8,1],[9,0,9,1],[10,0,10,1],[11,0,11,1],[12,0,12,1],[13,0,13,1],[14,0,14,20],[15,0,15,20],[16,0,16,20],[17,0,17,20],[18,0,18,20],[22,0,22,20],[23,0,23,20],[26,0,26,20],[27,0,27,20],[28,0,28,20],[29,0,29,20],[2,10,3,18],[1,19,2,20]]}
["ANEXO 22 AO QUAL SE REPORTA O INCISO XII DO ART. 11 DA LEI COMPLEMENTAR Nº 41/2012"]
["CARGO ....................................................:",null,null,null,null,"ODONTÓLOGO DE ESF",null,null,null,null,"HABILITAÇÃO ESPECÍFICA:",null,null,null,null,null,null,null,null,"CARGA HORÁRIA SEMANAL"]
["NÍVEL DE ESCOLARIDADE ....................:",null,null,null,null,"ENSINO SUPERIOR COMPLETO\t",null,null,null,null," Curso superior completo e registro no respectivo Conselho de Classe."]
["NÚMERO DE VAGAS .............................:",null,null,null,null,10,null,null,null,null,null,null,null,null,null,null,null,null,null,"40:00 HORAS"]
["PROMOÇÃO VERTICAL",null,null,"PROGRESSÃO (GRAUS)"]
[null,null,null,0,2,4,6,8,10,12,14,16,18,20,22,24,26,28,30,32,34]
["ESCOLARIDADE/NÍVEL",null,null,"A ","B","C","D","E","F","G","H","I","J","K","L","M","N","O","P","Q","R"]
["GRADUAÇÃO",null,"I",9233.71,{"$f":"(D8*2%)+D8","v":9418.3842},{"$f":"(E8*2%)+E8","v":9606.751884},9798.88692168,9994.8646601136,10194.7619533159,10398.6571923822,10606.6303362298,10818.7629429544,11035.1382018135,11255.8409658498,11480.9577851668,11710.5769408701,11944.7884796875,12183.6842492813,12427.3579342669,12675.9050929522,12929.4231948113]
["PÓS-GRADUAÇÃO",null,"II",{"$f":"(D8*10%)+D8","v":10157.081},{"$f":"(E8*10%)+E8","v":10360.22262},10567.4270724,10778.775613848,10994.351126125,11214.2381486475,11438.5229116204,11667.2933698528,11900.6392372499,12138.6520219949,12381.4250624348,12629.0535636835,12881.6346349571,13139.2673276563,13402.0526742094,13670.0937276936,13943.4956022475,14222.3655142924]
["PÓS-GRADUAÇÃO ESPECÍFICA",null,"III",{"$f":"(D9*10%)+D9","v":11172.7891},11396.244882,11624.16977964,11856.6531752328,12093.7862387375,12335.6619635122,12582.3752027824,12834.0227068381,13090.7031609749,13352.5172241944,13619.5675686782,13891.9589200518,14169.7980984528,14453.1940604219,14742.2579416303,15037.1031004629,15337.8451624722,15644.6020657217]
["MESTRADO",null,"IV",12290.06801,12535.8693702,12786.586757604,13042.3184927561,13303.1648626112,13569.2281598634,13840.6127230607,14117.4249775219,14399.7734770723,14687.7689466138,14981.5243255461,15281.154812057,15586.7779082981,15898.5134664641,16216.4837357934,16540.8134105092,16871.6296787194,17209.0622722938]
["DOUTORADO",null,"V",13519.074811,13789.45630722,14065.2454333644,14346.5503420317,14633.4813488723,14926.1509758498,15224.6739953668,15529.1674752741,15839.7508247796,16156.5458412752,16479.6767581007,16809.2702932627,17145.4556991279,17488.3648131105,17838.1321093727,18194.8947515602,18558.7926465914,18929.9684995232]
["FORMAÇÃO CONTINUADA",null,"VI",14870.9822921,15168.401937942,15471.7699767008,15781.2053762349,16096.8294837596,16418.7660734347,16747.1413949034,17082.0842228015,17423.7259072575,17772.2004254027,18127.6444339107,18490.197322589,18860.0012690407,19237.2012944215,19621.94532031,20014.3842267162,20414.6719112505,20822.9653494755]
["FORMAÇÃO CONTINUADA",null,"VII",16358.08052131,16685.2421317362,17018.9469743709,17359.3259138583,17706.5124321355,18060.6426807782,18421.8555343938,18790.2926450817,19166.0984979833,19549.420467943,19940.4088773018,20339.2170548478,20746.0013959448,21160.9214238637,21584.139852341,22015.8226493878,22456.1391023756,22905.2618844231]
["PROGRESSÃO: 2% (DOIS POR CENTO) A CADA INTERSTÍCIO DE 02 (DOIS) ANOS."]
["PROMOÇÃO: 10% (DEZ POR CENTO) A CADA INTERSTÍCIO DE 06 (SEIS) ANOS."]
["OS VALORES ACIMA ESTÃO EXPRESSOS EM REAIS."]
["Realizar diagnóstico com a finalidade de obter o perfil epidemiológico para o planejamento e a programação em saúde bucal. Realizar a atenção a saúde bucal (promoção e proteção da saúde, prevenção de agravos, diagnósticos, tratamento, acompanhamento, reabilitação e manutenção da saúde) individual e coletiva a todas as famílias, a indivíduos e a grupos específicos, de acordo com o planejamento da equipe, com resolubilidade. Realizar os procedimentos clínicos da Atenção Básica em saúde bucal, incluindo atendimento das urgências, pequenas cirurgias ambulatoriais e procedimentos relacionados com a fase clínica da instalação de próteses dentárias elementares. Realizar atividades programadas e de atenção à demanda espontânea. Coordenar e participar de ações coletivas voltadas à promoção da saúde e à prevenção de doenças bucais. Acompanhar, apoiar e desenvolver atividades referentes à saúde bucal com os demais membros da equipe, buscando aproximar e integrar ações de saúde de forma multidisciplinar. Realizar supervisão técnica do Técnico em Saúde Bucal (TSB) e Auxiliar em Saúde Bucal (ASB). Participar do gerenciamento dos insumos necessários para o adequado funcionamento da UBS. Participar do processo de territorialização e mapeamento da área de atuação da equipe, identificando grupos, famílias e indivíduos expostos a riscos e vulnerabilidades. Manter atualizado o cadastramento das famílias e dos indivíduos no sistema de informação indicado pelo gestor municipal e utilizar, de forma sistemática, os dados para a análise da situação de saúde considerando as características sociais, econômicas, culturais, demográficas e epidemiológicas do território, priorizando as situações a serem acompanhadas no planejamento local. Realizar o cuidado da saúde da população adscrita, prioritariamente no âmbito da unidade de saúde, e quando necessário no domicílio e nos demais espaços comunitários (escolas, associações, entre outros). Realizar ações de atenção a saúde conforme a necessidade de saúde da população local, bem como as previstas nas prioridades e protocolos da gestão local. Garantir da atenção a saúde buscando a integralidade por meio da realização de ações de promoção, proteção e recuperação da saúde e prevenção de agravos; e da garantia de atendimento da demanda espontânea, da realização das ações programáticas, coletivas e de vigilância à saúde. Participar do acolhimento dos usuários realizando a escuta qualificada das necessidades de saúde, procedendo a primeira avaliação (classificação de risco, avaliação de vulnerabilidade, coleta de informações e sinais clínicos) e identificação das necessidades de intervenções de cuidado, proporcionando atendimento humanizado, se responsabilizando pela continuidade da atenção e viabilizando o estabelecimento do vínculo. Realizar busca ativa e notificar doenças e agravos de notificação compulsória e de outros agravos e situações de importância local. Responsabilizar-se pela população adscrita, mantendo a coordenação do cuidado mesmo quando esta necessita de atenção em outros pontos de atenção do sistema de saúde. Praticar cuidado familiar e dirigido a coletividades e grupos sociais que visa propor intervenções que influenciem os processos de saúde doença dos indivíduos, das famílias, coletividades e da própria comunidade. Realizar reuniões de equipes a fim de discutir em conjunto o planejamento e avaliação das ações da equipe, a partir da utilização dos dados disponíveis. Acompanhar e avaliar sistematicamente as ações implementadas, visando à readequação do processo de trabalho. Garantir a qualidade do registro das atividades nos sistemas de informação na Atenção Básica. Realizar trabalho interdisciplinar e em equipe, integrando áreas técnicas e profissionais de diferentes formações. Realizar ações de educação em saúde a população adstrita, conforme planejamento da equipe. Participar das atividades de educação permanente. Promover a mobilização e a participação da comunidade, buscando efetivar o controle social. Identificar parceiros e recursos na comunidade que possam potencializar ações intersetoriais. Realizar outras ações e atividades a serem definidas de acordo com as prioridades locais. Executar outras atividades correlatas, que lhe forem atribuídas, de acordo com seu Conselho de Classe."]
["Cláudio (MG), 18 de setembro de 2025."]
[]
[]
[]
["José Rodrigues Barroso de Araújo"]
["Prefeito do Município de Cláudio"]